[Event "Live Chess"]
[Site "Chess.com"]
[Date "2024.06.01"]
[Round "-"]
[White "CCGoodKnightRookie"]
[Black "Tushinskiy"]
[Result "0-1"]
[WhiteElo "2358"]
[BlackElo "2254"]
[TimeControl "300"]
[EndTime "15:02:37 PDT"]
[Termination "Tushinskiy won by resignation"]

1. d4 {[%clk 0:04:56.6]} 1... d5 {[%clk 0:04:52.2]} 2. Nc3 {[%clk 0:04:54.6]}
2... c6 {[%clk 0:04:52.1]} 3. Bf4 {[%clk 0:04:52.8]} 3... Nf6 {[%clk 0:04:50.3]}
4. e3 {[%clk 0:04:47.5]} 4... Qb6 {[%clk 0:04:45.9]} 5. Rb1 {[%clk 0:04:46.3]}
5... e6 {[%clk 0:04:40.1]} 6. Bd3 {[%clk 0:04:44.9]} 6... Nbd7 {[%clk
0:04:35.9]} 7. Nf3 {[%clk 0:04:44.1]} 7... c5 {[%clk 0:04:30.1]} 8. dxc5 {[%clk
0:04:42.1]} 8... Nxc5 {[%clk 0:04:28.8]} 9. O-O {[%clk 0:04:33.6]} 9... Bd7
{[%clk 0:04:20.2]} 10. Ne5 {[%clk 0:04:31]} 10... Be7 {[%clk 0:04:18.3]} 11. Bg5
{[%clk 0:04:22.4]} 11... a6 {[%clk 0:03:58]} 12. b4 {[%clk 0:04:20.4]} 12...
Nxd3 {[%clk 0:03:54.6]} 13. Bxf6 {[%clk 0:04:17.5]} 13... Nxf2 {[%clk
0:03:46.6]} 14. Nxd7 {[%clk 0:04:00.8]} 14... Kxd7 {[%clk 0:03:42.1]} 15. Bd4
{[%clk 0:03:53.5]} 15... Nxd1 {[%clk 0:03:39.3]} 16. Bxb6 {[%clk 0:03:50.8]}
16... Nxc3 {[%clk 0:03:39.2]} 0-1

[Event "Live Chess"]
[Site "Chess.com"]
[Date "2024.06.01"]
[Round "-"]
[White "lateforthesky"]
[Black "nigelst"]
[Result "1-0"]
[WhiteElo "2135"]
[BlackElo "1675"]
[TimeControl "300"]
[EndTime "15:02:50 PDT"]
[Termination "lateforthesky won by resignation"]

1. e4 {[%clk 0:04:52]} 1... c6 {[%clk 0:04:58.5]} 2. Nf3 {[%clk 0:04:50.1]} 2...
d5 {[%clk 0:04:53.3]} 3. exd5 {[%clk 0:04:48.6]} 3... cxd5 {[%clk 0:04:51.9]} 4.
Ne5 {[%clk 0:04:48.2]} 4... Nc6 {[%clk 0:04:49.5]} 5. d4 {[%clk 0:04:47.2]} 5...
Bf5 {[%clk 0:04:43.8]} 6. Bb5 {[%clk 0:04:42.1]} 6... Rc8 {[%clk 0:04:38]} 7.
Nxc6 {[%clk 0:04:07.6]} 7... bxc6 {[%clk 0:03:15]} 8. Bd3 {[%clk 0:04:05.5]}
8... Bxd3 {[%clk 0:03:12]} 9. Qxd3 {[%clk 0:04:04.3]} 9... e6 {[%clk 0:03:11.5]}
10. O-O {[%clk 0:04:01.8]} 10... Nf6 {[%clk 0:03:08.7]} 11. c4 {[%clk
0:03:42.1]} 11... dxc4 {[%clk 0:03:04.3]} 12. Qxc4 {[%clk 0:03:41.2]} 12... Qd5
{[%clk 0:03:03.3]} 13. Qa4 {[%clk 0:03:36.8]} 13... a5 {[%clk 0:02:56.3]} 14.
Nc3 {[%clk 0:03:34.7]} 14... Qd7 {[%clk 0:02:45.4]} 15. Be3 {[%clk 0:03:24.8]}
15... Bd6 {[%clk 0:02:40.8]} 16. h3 {[%clk 0:03:18.9]} 16... Qc7 {[%clk
0:02:37.1]} 17. Rac1 {[%clk 0:03:10.5]} 17... Qd7 {[%clk 0:02:27.5]} 18. Qxa5
{[%clk 0:02:58.9]} 18... O-O {[%clk 0:02:25.1]} 19. Rfd1 {[%clk 0:02:51.6]}
19... Nd5 {[%clk 0:02:23.1]} 20. Nxd5 {[%clk 0:02:43.8]} 20... cxd5 {[%clk
0:02:18.9]} 21. Qd2 {[%clk 0:02:38]} 21... Bb8 {[%clk 0:02:15.6]} 22. Bf4 {[%clk
0:02:34]} 22... Bxf4 {[%clk 0:02:11.8]} 23. Qxf4 {[%clk 0:02:32.9]} 23... Qb5
{[%clk 0:02:08.3]} 24. b3 {[%clk 0:02:24.7]} 24... Qb4 {[%clk 0:02:05.8]} 25.
Qe3 {[%clk 0:02:11.8]} 25... Qa3 {[%clk 0:02:02.5]} 26. Qd2 {[%clk 0:02:09.1]}
26... Rfd8 {[%clk 0:01:58.3]} 27. Kh2 {[%clk 0:02:06.5]} 27... Qd6+ {[%clk
0:01:55.7]} 28. g3 {[%clk 0:02:04.8]} 28... Qd7 {[%clk 0:01:51.8]} 29. Rxc8
{[%clk 0:02:01.8]} 29... Rxc8 {[%clk 0:01:50.1]} 30. Rc1 {[%clk 0:02:01.4]}
30... h6 {[%clk 0:01:44.3]} 31. Rc5 {[%clk 0:01:52.4]} 31... Rxc5 {[%clk
0:01:34.7]} 32. dxc5 {[%clk 0:01:51.4]} 32... Qc6 {[%clk 0:01:29.9]} 33. Qd4
{[%clk 0:01:36.5]} 33... f6 {[%clk 0:01:26.5]} 34. Qb4 {[%clk 0:01:32.9]} 34...
e5 {[%clk 0:01:21.4]} 35. Qb6 {[%clk 0:01:31.9]} 35... Qe8 {[%clk 0:01:09.9]}
36. c6 {[%clk 0:01:27.3]} 36... d4 {[%clk 0:01:07.7]} 37. c7 {[%clk 0:01:22.8]}
37... d3 {[%clk 0:01:02.5]} 38. Qd6 {[%clk 0:01:21.4]} 38... d2 {[%clk
0:00:52.7]} 39. Qxd2 {[%clk 0:01:19.2]} 39... e4 {[%clk 0:00:50.5]} 40. Qd8
{[%clk 0:01:17.1]} 1-0

[Event "Live Chess"]
[Site "Chess.com"]
[Date "2024.06.01"]
[Round "-"]
[White "CarmelJane"]
[Black "AndrewBak1"]
[Result "1-0"]
[WhiteElo "2073"]
[BlackElo "1869"]
[TimeControl "300"]
[EndTime "15:03:06 PDT"]
[Termination "CarmelJane won by checkmate"]

1. e4 {[%clk 0:04:58.3]} 1... c5 {[%clk 0:04:53.3]} 2. Nf3 {[%clk 0:04:56.9]}
2... Nc6 {[%clk 0:04:47.3]} 3. Bb5 {[%clk 0:04:39.9]} 3... e6 {[%clk 0:04:41.1]}
4. Bxc6 {[%clk 0:04:37.4]} 4... bxc6 {[%clk 0:04:33.8]} 5. d3 {[%clk 0:04:36.6]}
5... d5 {[%clk 0:04:33.3]} 6. e5 {[%clk 0:04:34.7]} 6... f6 {[%clk 0:04:30.9]}
7. O-O {[%clk 0:04:29.1]} 7... fxe5 {[%clk 0:04:29.1]} 8. Nxe5 {[%clk 0:04:29]}
8... Qc7 {[%clk 0:04:18.9]} 9. Qh5+ {[%clk 0:04:24.2]} 9... g6 {[%clk
0:04:18.4]} 10. Nxg6 {[%clk 0:04:15.1]} 10... Qf7 {[%clk 0:04:17.1]} 11. Nf4
{[%clk 0:04:13.8]} 11... Nf6 {[%clk 0:04:13]} 12. Qxf7+ {[%clk 0:04:09.6]} 12...
Kxf7 {[%clk 0:04:12.9]} 13. Re1 {[%clk 0:04:00.5]} 13... Bd6 {[%clk 0:04:08.2]}
14. Nc3 {[%clk 0:03:58.4]} 14... e5 {[%clk 0:04:04.6]} 15. Nfe2 {[%clk
0:03:53.9]} 15... h5 {[%clk 0:03:57.9]} 16. Bg5 {[%clk 0:03:45.2]} 16... h4
{[%clk 0:03:52]} 17. Bxf6 {[%clk 0:03:43.7]} 17... Kxf6 {[%clk 0:03:49.9]} 18.
h3 {[%clk 0:03:34.5]} 18... Rg8 {[%clk 0:03:43.1]} 19. Kh1 {[%clk 0:03:28.8]}
19... Rb8 {[%clk 0:03:40.2]} 20. Nd1 {[%clk 0:03:26.1]} 20... Be6 {[%clk
0:03:26.5]} 21. b3 {[%clk 0:03:23.2]} 21... Rg7 {[%clk 0:03:23.9]} 22. c4 {[%clk
0:02:31.9]} 22... Rbg8 {[%clk 0:03:19.5]} 23. Rg1 {[%clk 0:02:30.3]} 23... Bf5
{[%clk 0:03:10.5]} 24. Nb2 {[%clk 0:02:10.6]} 24... e4 {[%clk 0:01:29.3]} 25.
dxe4 {[%clk 0:02:08.8]} 25... Bxe4 {[%clk 0:01:29.2]} 26. f3 {[%clk 0:02:07.5]}
26... Bf5 {[%clk 0:01:24.9]} 27. Rad1 {[%clk 0:02:01.2]} 27... Be5 {[%clk
0:01:23]} 28. Nd3 {[%clk 0:01:54.8]} 28... Bd4 {[%clk 0:01:04.6]} 29. Nxd4
{[%clk 0:01:52.6]} 29... cxd4 {[%clk 0:01:04.5]} 30. cxd5 {[%clk 0:01:47.7]}
30... cxd5 {[%clk 0:01:03.1]} 31. Nf4 {[%clk 0:01:47.1]} 31... Ke5 {[%clk
0:01:00.7]} 32. Nd3+ {[%clk 0:01:44.2]} 32... Kd6 {[%clk 0:00:58.3]} 33. Nf4
{[%clk 0:01:36.4]} 33... Re7 {[%clk 0:00:57]} 34. Rxd4 {[%clk 0:01:33.5]} 34...
Be6 {[%clk 0:00:43.6]} 35. Rgd1 {[%clk 0:01:29.8]} 35... Rg5 {[%clk 0:00:37.9]}
36. Nxe6 {[%clk 0:01:16.6]} 36... Rxe6 {[%clk 0:00:37.8]} 37. Rxh4 {[%clk
0:01:15.9]} 37... Re2 {[%clk 0:00:35.5]} 38. Rg4 {[%clk 0:01:12.6]} 38... Rge5
{[%clk 0:00:31.8]} 39. a4 {[%clk 0:01:07.9]} 39... Rb2 {[%clk 0:00:30.8]} 40.
Rg7 {[%clk 0:01:05.7]} 40... Rxb3 {[%clk 0:00:29]} 41. Rxa7 {[%clk 0:01:03.7]}
41... Re2 {[%clk 0:00:28.3]} 42. Ra5 {[%clk 0:01:01.9]} 42... Rbb2 {[%clk
0:00:27.5]} 43. Raxd5+ {[%clk 0:00:59.7]} 43... Kc6 {[%clk 0:00:27.2]} 44. Rg5
{[%clk 0:00:59.2]} 44... Kb6 {[%clk 0:00:25.5]} 45. a5+ {[%clk 0:00:58.4]} 45...
Ka6 {[%clk 0:00:24.5]} 46. Rd6+ {[%clk 0:00:57.8]} 46... Kb7 {[%clk 0:00:23.7]}
47. Rg7+ {[%clk 0:00:56.7]} 47... Kc8 {[%clk 0:00:22.3]} 48. Rc6+ {[%clk
0:00:55.7]} 48... Kd8 {[%clk 0:00:21.1]} 49. Ra6 {[%clk 0:00:51.4]} 49... Rb8
{[%clk 0:00:17.1]} 50. Rh6 {[%clk 0:00:48.6]} 50... Re8 {[%clk 0:00:15.6]} 51.
a6 {[%clk 0:00:43.2]} 51... Ra8 {[%clk 0:00:14.5]} 52. a7 {[%clk 0:00:41.3]}
52... Re2 {[%clk 0:00:13.4]} 53. Rh8+ {[%clk 0:00:40.3]} 53... Re8 {[%clk
0:00:12.9]} 54. Rxe8+ {[%clk 0:00:38.8]} 54... Kxe8 {[%clk 0:00:12.8]} 55. Rg8+
{[%clk 0:00:38.6]} 55... Kf7 {[%clk 0:00:11.7]} 56. Rxa8 {[%clk 0:00:38.5]}
56... Kg6 {[%clk 0:00:11.6]} 57. Rb8 {[%clk 0:00:38.1]} 57... Kh5 {[%clk
0:00:11.5]} 58. Rb4 {[%clk 0:00:36.9]} 58... Kg6 {[%clk 0:00:10.1]} 59. a8=Q
{[%clk 0:00:36.8]} 59... Kh7 {[%clk 0:00:10]} 60. Qa5 {[%clk 0:00:36.1]} 60...
Kh6 {[%clk 0:00:09.9]} 61. Rb6+ {[%clk 0:00:36]} 61... Kg7 {[%clk 0:00:09.8]}
62. Qa7+ {[%clk 0:00:35.6]} 62... Kf8 {[%clk 0:00:09]} 63. Rb8# {[%clk
0:00:35.5]} 1-0

[Event "Live Chess"]
[Site "Chess.com"]
[Date "2024.06.01"]
[Round "-"]
[White "oscalik"]
[Black "ShanthamGrarks"]
[Result "0-1"]
[WhiteElo "2317"]
[BlackElo "1762"]
[TimeControl "300"]
[EndTime "15:03:09 PDT"]
[Termination "ShanthamGrarks won by resignation"]

1. e4 {[%clk 0:04:58.1]} 1... e6 {[%clk 0:04:55.6]} 2. d4 {[%clk 0:04:56.7]}
2... d5 {[%clk 0:04:54.8]} 3. Nd2 {[%clk 0:04:56.3]} 3... Nf6 {[%clk 0:04:53.8]}
4. e5 {[%clk 0:04:55.5]} 4... Nfd7 {[%clk 0:04:53.4]} 5. f4 {[%clk 0:04:53.6]}
5... c5 {[%clk 0:04:52.8]} 6. c3 {[%clk 0:04:52.5]} 6... Nc6 {[%clk 0:04:52.4]}
7. Ndf3 {[%clk 0:04:52]} 7... Qb6 {[%clk 0:04:51.9]} 8. a3 {[%clk 0:04:50.7]}
8... cxd4 {[%clk 0:04:51.4]} 9. cxd4 {[%clk 0:04:49.7]} 9... Be7 {[%clk
0:04:50.3]} 10. h4 {[%clk 0:04:43.1]} 10... h6 {[%clk 0:04:48.5]} 11. b3 {[%clk
0:04:38.9]} 11... a6 {[%clk 0:04:38.9]} 12. h5 {[%clk 0:04:34.6]} 12... Na5
{[%clk 0:04:35.9]} 13. Rb1 {[%clk 0:04:28.8]} 13... Nc6 {[%clk 0:04:31.9]} 14.
Bb2 {[%clk 0:04:22.1]} 14... Bxa3 {[%clk 0:04:24.8]} 15. Bxa3 {[%clk 0:04:03.8]}
15... Qa5+ {[%clk 0:04:23]} 16. Kf2 {[%clk 0:04:00.5]} 16... Qxa3 {[%clk
0:04:20.2]} 17. Bd3 {[%clk 0:03:59.3]} 17... Qa2+ {[%clk 0:04:07.2]} 18. Ne2
{[%clk 0:03:54.3]} 18... Qa5 {[%clk 0:04:04.8]} 19. g4 {[%clk 0:03:45.4]} 19...
Nb4 {[%clk 0:04:03.6]} 20. Kg2 {[%clk 0:03:32.7]} 20... Nxd3 {[%clk 0:03:58.1]}
21. Qxd3 {[%clk 0:03:31.2]} 21... b5 {[%clk 0:03:42.1]} 22. Ng3 {[%clk 0:03:22]}
22... Bb7 {[%clk 0:03:33.9]} 23. f5 {[%clk 0:03:19.5]} 23... O-O {[%clk
0:03:22.7]} 24. g5 {[%clk 0:03:15.3]} 24... Qa2+ {[%clk 0:03:09]} 25. Kh3 {[%clk
0:03:10.5]} 25... exf5 {[%clk 0:03:04.9]} 26. Qxf5 {[%clk 0:02:57.9]} 26... Bc8
{[%clk 0:02:59.1]} 27. Kh4 {[%clk 0:02:21.1]} 27... Qf2 {[%clk 0:02:49.3]} 28.
Rbf1 {[%clk 0:01:53.3]} 28... Qe3 {[%clk 0:02:44.5]} 29. gxh6 {[%clk 0:01:03.7]}
29... Nf6 {[%clk 0:02:21.9]} 30. Qg5 {[%clk 0:00:48.5]} 30... Qxg5+ {[%clk
0:02:13.8]} 31. Nxg5 {[%clk 0:00:47.9]} 31... Ng4 {[%clk 0:02:07.9]} 32. h7+
{[%clk 0:00:46.6]} 32... Kh8 {[%clk 0:02:04.3]} 33. Nxf7+ {[%clk 0:00:46.2]}
33... Rxf7 {[%clk 0:01:55.1]} 34. Rxf7 {[%clk 0:00:44.3]} 34... Kxh7 {[%clk
0:01:53.3]} 35. Rf8 {[%clk 0:00:41.9]} 35... Ne3 {[%clk 0:01:44.9]} 36. e6
{[%clk 0:00:38.9]} 36... Ng2+ {[%clk 0:01:34]} 37. Kh3 {[%clk 0:00:36.3]} 37...
Bxe6+ {[%clk 0:01:31.6]} 38. Kxg2 {[%clk 0:00:35.8]} 38... Rxf8 {[%clk
0:01:30.4]} 39. Re1 {[%clk 0:00:35.4]} 39... Bg4 {[%clk 0:01:27.5]} 40. Re5
{[%clk 0:00:33.6]} 40... a5 {[%clk 0:01:23.4]} 41. Kg1 {[%clk 0:00:32.1]} 41...
Bf3 {[%clk 0:01:21.6]} 42. Nf5 {[%clk 0:00:30.8]} 42... Be4 {[%clk 0:01:17.8]}
43. Ne7 {[%clk 0:00:30]} 43... Rf3 {[%clk 0:01:14]} 44. Nxd5 {[%clk 0:00:28.7]}
44... Bxd5 {[%clk 0:01:12.1]} 45. Rxd5 {[%clk 0:00:28.6]} 45... Rxb3 {[%clk
0:01:11.1]} 46. Kf2 {[%clk 0:00:28.3]} 46... a4 {[%clk 0:01:10.5]} 47. Rd7
{[%clk 0:00:26.7]} 47... a3 {[%clk 0:01:10.4]} 48. Ra7 {[%clk 0:00:25.9]} 48...
b4 {[%clk 0:01:08.5]} 49. d5 {[%clk 0:00:24.1]} 49... Rd3 {[%clk 0:01:06]} 50.
Ra5 {[%clk 0:00:21.9]} 50... b3 {[%clk 0:01:00.9]} 51. Rxa3 {[%clk 0:00:20.4]}
51... b2 {[%clk 0:00:59.6]} 52. Rxd3 {[%clk 0:00:16.4]} 52... b1=Q {[%clk
0:00:58.1]} 53. d6 {[%clk 0:00:16.3]} 53... Qxd3 {[%clk 0:00:56.7]} 54. d7
{[%clk 0:00:15.2]} 54... Qxd7 {[%clk 0:00:55.6]} 0-1

[Event "Live Chess"]
[Site "Chess.com"]
[Date "2024.06.01"]
[Round "-"]
[White "Dhaydon19"]
[Black "Duke_of_Bebington"]
[Result "1-0"]
[WhiteElo "2677"]
[BlackElo "1644"]
[TimeControl "300"]
[EndTime "15:03:41 PDT"]
[Termination "Dhaydon19 won by resignation"]

1. d4 {[%clk 0:04:54.8]} 1... d5 {[%clk 0:04:58.7]} 2. c3 {[%clk 0:04:54.5]}
2... Nf6 {[%clk 0:04:55.9]} 3. Nf3 {[%clk 0:04:54.1]} 3... Bf5 {[%clk 0:04:54]}
4. g3 {[%clk 0:04:53.8]} 4... e6 {[%clk 0:04:53.1]} 5. Bg2 {[%clk 0:04:53.4]}
5... Be7 {[%clk 0:04:50.9]} 6. Nbd2 {[%clk 0:04:53.1]} 6... O-O {[%clk 0:04:49]}
7. O-O {[%clk 0:04:52.8]} 7... c5 {[%clk 0:04:48.3]} 8. Re1 {[%clk 0:04:52]}
8... Nc6 {[%clk 0:04:46.1]} 9. Nb3 {[%clk 0:04:48.9]} 9... Ne4 {[%clk
0:04:27.3]} 10. Be3 {[%clk 0:04:45.4]} 10... c4 {[%clk 0:04:23.7]} 11. Nbd2
{[%clk 0:04:44]} 11... Nxd2 {[%clk 0:04:21.6]} 12. Nxd2 {[%clk 0:04:41.5]} 12...
b5 {[%clk 0:04:20.4]} 13. a4 {[%clk 0:04:39.7]} 13... b4 {[%clk 0:04:16.9]} 14.
Nxc4 {[%clk 0:04:38.2]} 14... bxc3 {[%clk 0:04:10.1]} 15. bxc3 {[%clk
0:04:37.8]} 15... dxc4 {[%clk 0:04:06]} 16. Bxc6 {[%clk 0:04:35.6]} 16... Rc8
{[%clk 0:04:05.5]} 17. Bg2 {[%clk 0:04:34.1]} 17... Qa5 {[%clk 0:03:55.2]} 18.
Bd2 {[%clk 0:04:32.6]} 18... Rfd8 {[%clk 0:03:50.5]} 19. e4 {[%clk 0:04:31.5]}
19... Bg6 {[%clk 0:03:47.4]} 20. Rb1 {[%clk 0:04:28.1]} 20... a6 {[%clk
0:03:41.4]} 21. Qc2 {[%clk 0:04:25.7]} 21... f6 {[%clk 0:03:31.3]} 22. Rb7
{[%clk 0:04:23.4]} 22... Kf8 {[%clk 0:03:28.5]} 23. Reb1 {[%clk 0:04:21.2]}
23... Be8 {[%clk 0:03:27.6]} 24. e5 {[%clk 0:04:08.1]} 24... fxe5 {[%clk
0:03:24.5]} 25. Qxh7 {[%clk 0:04:06]} 25... Bf7 {[%clk 0:03:14.4]} 26. Rxe7
{[%clk 0:03:53.3]} 26... Kxe7 {[%clk 0:03:11.9]} 27. Bg5+ {[%clk 0:03:47.8]}
27... Kd7 {[%clk 0:03:08.5]} 28. Bxd8 {[%clk 0:03:44.6]} 28... Rxd8 {[%clk
0:03:07.6]} 29. Qxg7 {[%clk 0:03:43.5]} 1-0

[Event "Live Chess"]
[Site "Chess.com"]
[Date "2024.06.01"]
[Round "-"]
[White "Ferrarifan27"]
[Black "NeilDruggan73"]
[Result "1-0"]
[WhiteElo "2094"]
[BlackElo "1741"]
[TimeControl "300"]
[EndTime "15:04:08 PDT"]
[Termination "Ferrarifan27 won by resignation"]

1. e4 {[%clk 0:04:47.9]} 1... d6 {[%clk 0:04:58.6]} 2. d4 {[%clk 0:04:39.9]}
2... Nf6 {[%clk 0:04:57]} 3. Nc3 {[%clk 0:04:36.3]} 3... g6 {[%clk 0:04:49.6]}
4. f4 {[%clk 0:04:33.3]} 4... Bg7 {[%clk 0:04:46.8]} 5. Qd2 {[%clk 0:04:28.4]}
5... O-O {[%clk 0:04:44.3]} 6. Nf3 {[%clk 0:04:26.8]} 6... Nc6 {[%clk
0:04:39.5]} 7. e5 {[%clk 0:04:23.5]} 7... dxe5 {[%clk 0:04:37.4]} 8. dxe5 {[%clk
0:04:22.6]} 8... Qxd2+ {[%clk 0:04:35.2]} 9. Bxd2 {[%clk 0:04:22.5]} 9... Nh5
{[%clk 0:04:27.4]} 10. O-O-O {[%clk 0:04:14.7]} 10... Bg4 {[%clk 0:04:14.5]} 11.
Be2 {[%clk 0:04:12.6]} 11... Rad8 {[%clk 0:04:09]} 12. h3 {[%clk 0:04:00.9]}
12... Bxf3 {[%clk 0:03:58.6]} 13. Bxf3 {[%clk 0:03:59.8]} 13... Nd4 {[%clk
0:03:45.1]} 14. Bxh5 {[%clk 0:03:51.5]} 14... gxh5 {[%clk 0:03:42.8]} 15. Ne4
{[%clk 0:03:43.4]} 15... h6 {[%clk 0:03:38]} 16. c3 {[%clk 0:03:36.7]} 16...
Ne2+ {[%clk 0:03:17.6]} 17. Kc2 {[%clk 0:03:32.9]} 17... f5 {[%clk 0:03:16.6]}
18. exf6 {[%clk 0:03:30.4]} 18... Bxf6 {[%clk 0:03:11]} 19. Rhe1 {[%clk
0:03:23.7]} 19... Rxd2+ {[%clk 0:02:43.4]} 20. Rxd2 {[%clk 0:03:17.5]} 20...
Nxf4 {[%clk 0:02:41.8]} 21. Nxf6+ {[%clk 0:03:15.1]} 21... Rxf6 {[%clk 0:02:39]}
22. Rxe7 {[%clk 0:03:11.2]} 22... Ne6 {[%clk 0:02:32.1]} 23. Re2 {[%clk
0:03:05.7]} 23... Nf4 {[%clk 0:02:25.7]} 24. Rf2 {[%clk 0:03:02.8]} 24... Kf8
{[%clk 0:02:20.8]} 25. Rxc7 {[%clk 0:03:00.2]} 25... Nd5 {[%clk 0:02:14.8]} 26.
Rxf6+ {[%clk 0:02:57.8]} 26... Nxf6 {[%clk 0:02:12.7]} 27. Rxb7 {[%clk 0:02:57]}
27... Ne4 {[%clk 0:02:11.4]} 28. Rxa7 {[%clk 0:02:55.2]} 1-0

[Event "Live Chess"]
[Site "Chess.com"]
[Date "2024.06.01"]
[Round "-"]
[White "gmnorfolk"]
[Black "willc-h99"]
[Result "0-1"]
[WhiteElo "2106"]
[BlackElo "2626"]
[TimeControl "300"]
[EndTime "15:04:10 PDT"]
[Termination "willc-h99 won on time"]

1. e4 {[%clk 0:04:54]} 1... c6 {[%clk 0:04:58.5]} 2. d4 {[%clk 0:04:48]} 2... d5
{[%clk 0:04:57.7]} 3. e5 {[%clk 0:04:46]} 3... Bf5 {[%clk 0:04:56.2]} 4. h4
{[%clk 0:04:43.6]} 4... h5 {[%clk 0:04:54.2]} 5. c4 {[%clk 0:04:38.1]} 5... e6
{[%clk 0:04:48]} 6. Nc3 {[%clk 0:04:36.4]} 6... Nd7 {[%clk 0:04:43.9]} 7. cxd5
{[%clk 0:04:31.7]} 7... cxd5 {[%clk 0:04:41.4]} 8. Bd3 {[%clk 0:04:31.3]} 8...
Ne7 {[%clk 0:04:34.7]} 9. Bg5 {[%clk 0:04:25.7]} 9... Bxd3 {[%clk 0:04:33.1]}
10. Qxd3 {[%clk 0:04:23.7]} 10... Qb6 {[%clk 0:04:31.8]} 11. Nge2 {[%clk
0:04:16.8]} 11... Nf5 {[%clk 0:04:30.1]} 12. O-O {[%clk 0:04:08.9]} 12... Be7
{[%clk 0:04:27.4]} 13. Bxe7 {[%clk 0:03:57.5]} 13... Nxe7 {[%clk 0:04:25.8]} 14.
Na4 {[%clk 0:03:46]} 14... Qa5 {[%clk 0:04:20.9]} 15. b3 {[%clk 0:03:40.6]}
15... O-O {[%clk 0:04:11.1]} 16. Ng3 {[%clk 0:03:28.8]} 16... g6 {[%clk
0:04:08.7]} 17. Rac1 {[%clk 0:03:16.7]} 17... Rfc8 {[%clk 0:04:06]} 18. Qe3
{[%clk 0:03:04]} 18... Nf8 {[%clk 0:03:58.1]} 19. Qg5 {[%clk 0:02:56.2]} 19...
Nf5 {[%clk 0:03:55.3]} 20. Nxf5 {[%clk 0:02:50]} 20... exf5 {[%clk 0:03:54]} 21.
Qe7 {[%clk 0:02:47]} 21... b6 {[%clk 0:03:42.5]} 22. Qb7 {[%clk 0:02:25.8]}
22... Rxc1 {[%clk 0:03:15.7]} 23. Rxc1 {[%clk 0:02:23.4]} 23... Qd2 {[%clk
0:03:13.2]} 24. Rc7 {[%clk 0:02:09.5]} 24... Qxd4 {[%clk 0:03:02.3]} 25. g3
{[%clk 0:01:42.3]} 25... Qxe5 {[%clk 0:02:51.7]} 26. Rxf7 {[%clk 0:01:35.8]}
26... Re8 {[%clk 0:02:45]} 27. Qxa7 {[%clk 0:00:57.2]} 27... Qe1+ {[%clk
0:02:41.9]} 28. Kg2 {[%clk 0:00:54.9]} 28... Qe4+ {[%clk 0:02:35.2]} 29. Kh2
{[%clk 0:00:52.2]} 29... Qd4 {[%clk 0:02:29.7]} 30. Kg2 {[%clk 0:00:39.7]} 30...
Re2 {[%clk 0:02:27.1]} 31. Rxf8+ {[%clk 0:00:22.1]} 31... Kxf8 {[%clk 0:02:25]}
32. Qb8+ {[%clk 0:00:21.1]} 32... Kf7 {[%clk 0:02:21.2]} 33. Qc7+ {[%clk
0:00:20]} 33... Re7 {[%clk 0:02:19.7]} 34. Qxb6 {[%clk 0:00:12.8]} 34... Qe4+
{[%clk 0:02:16.9]} 35. Kh2 {[%clk 0:00:10.7]} 35... f4 {[%clk 0:02:12.9]} 36.
Nc5 {[%clk 0:00:05.5]} 36... fxg3+ {[%clk 0:02:11.5]} 37. fxg3 {[%clk
0:00:04.3]} 37... Qe2+ {[%clk 0:02:08.7]} 38. Kh3 {[%clk 0:00:03.6]} 38... Qg4+
{[%clk 0:02:07.6]} 39. Kg2 {[%clk 0:00:01.5]} 39... Re2+ {[%clk 0:02:07.1]} 0-1

[Event "Live Chess"]
[Site "Chess.com"]
[Date "2024.06.01"]
[Round "-"]
[White "lestmak"]
[Black "MagnersCarlsberg2870"]
[Result "0-1"]
[WhiteElo "523"]
[BlackElo "1763"]
[TimeControl "300"]
[EndTime "15:04:17 PDT"]
[Termination "MagnersCarlsberg2870 won by checkmate"]

1. e4 {[%clk 0:04:58.3]} 1... e5 {[%clk 0:04:57.6]} 2. Nf3 {[%clk 0:04:57.3]}
2... Nf6 {[%clk 0:04:56.6]} 3. Nxe5 {[%clk 0:04:54.5]} 3... Nc6 {[%clk
0:04:55.3]} 4. Nxc6 {[%clk 0:04:50]} 4... dxc6 {[%clk 0:04:54]} 5. d3 {[%clk
0:04:48.5]} 5... Bc5 {[%clk 0:04:52.8]} 6. Qf3 {[%clk 0:04:31.5]} 6... h5 {[%clk
0:04:50.7]} 7. h4 {[%clk 0:04:27.7]} 7... Bg4 {[%clk 0:04:42.2]} 8. Qg3 {[%clk
0:04:04.1]} 8... Nxe4 {[%clk 0:04:40.1]} 9. Qe5+ {[%clk 0:03:54.3]} 9... Qe7
{[%clk 0:04:29.8]} 10. Qxg7 {[%clk 0:03:52.6]} 10... Bxf2# {[%clk 0:04:23.3]}
0-1

[Event "Live Chess"]
[Site "Chess.com"]
[Date "2024.06.01"]
[Round "-"]
[White "wadsy27"]
[Black "MellowAesthetic"]
[Result "1-0"]
[WhiteElo "2541"]
[BlackElo "2074"]
[TimeControl "300"]
[EndTime "15:04:32 PDT"]
[Termination "wadsy27 won on time"]

1. d4 {[%clk 0:04:56.1]} 1... Nf6 {[%clk 0:04:58.8]} 2. c4 {[%clk 0:04:53.9]}
2... g6 {[%clk 0:04:58.2]} 3. Nc3 {[%clk 0:04:52.9]} 3... Bg7 {[%clk 0:04:57.7]}
4. e4 {[%clk 0:04:49.6]} 4... d6 {[%clk 0:04:57]} 5. Nge2 {[%clk 0:04:45.9]}
5... O-O {[%clk 0:04:49.8]} 6. Ng3 {[%clk 0:04:36.7]} 6... c6 {[%clk 0:03:59.9]}
7. Be2 {[%clk 0:04:32.8]} 7... a6 {[%clk 0:03:56.4]} 8. a4 {[%clk 0:04:24.2]}
8... a5 {[%clk 0:03:55.4]} 9. h4 {[%clk 0:04:22.7]} 9... h5 {[%clk 0:03:49.9]}
10. Bg5 {[%clk 0:04:18.4]} 10... Na6 {[%clk 0:03:48.2]} 11. O-O {[%clk
0:04:14.4]} 11... Nb4 {[%clk 0:03:47.1]} 12. e5 {[%clk 0:04:10.7]} 12... Nh7
{[%clk 0:03:34.5]} 13. exd6 {[%clk 0:03:33.3]} 13... Nxg5 {[%clk 0:03:32.9]} 14.
hxg5 {[%clk 0:03:32.7]} 14... Qxd6 {[%clk 0:02:50.1]} 15. d5 {[%clk 0:03:30.9]}
15... cxd5 {[%clk 0:02:35.8]} 16. Nxd5 {[%clk 0:03:28.8]} 16... Nxd5 {[%clk
0:02:12.9]} 17. cxd5 {[%clk 0:03:23.4]} 17... Bxb2 {[%clk 0:02:07.6]} 18. Rb1
{[%clk 0:03:22.5]} 18... Bg7 {[%clk 0:01:45]} 19. Qd2 {[%clk 0:03:06.9]} 19...
Rd8 {[%clk 0:01:26.7]} 20. Rfd1 {[%clk 0:03:03.2]} 20... e6 {[%clk 0:01:14.7]}
21. Bf3 {[%clk 0:02:51.3]} 21... exd5 {[%clk 0:01:09.5]} 22. Bxd5 {[%clk
0:02:50.4]} 22... Be6 {[%clk 0:01:07.2]} 23. Rb5 {[%clk 0:02:44.3]} 23... Rd7
{[%clk 0:00:28.1]} 24. Ne4 {[%clk 0:02:17.9]} 24... Qe5 {[%clk 0:00:27.3]} 25.
f4 {[%clk 0:02:08.4]} 25... Qf5 {[%clk 0:00:17.4]} 26. Bxb7 {[%clk 0:01:51.5]}
26... Rxd2 {[%clk 0:00:15]} 27. Rxd2 {[%clk 0:01:51.4]} 27... Rb8 {[%clk
0:00:11]} 28. Rxf5 {[%clk 0:01:46.9]} 28... Bxf5 {[%clk 0:00:08.3]} 29. Nd6
{[%clk 0:01:45.5]} 29... Bf8 {[%clk 0:00:04]} 30. Nxf5 {[%clk 0:01:43.9]} 30...
Rxb7 {[%clk 0:00:03.6]} 31. Ng3 {[%clk 0:01:34.4]} 31... Rb4 {[%clk 0:00:03.5]}
32. f5 {[%clk 0:01:29]} 32... Rxa4 {[%clk 0:00:02.6]} 33. fxg6 {[%clk
0:01:24.9]} 33... fxg6 {[%clk 0:00:02.5]} 34. Rd7 {[%clk 0:01:19.5]} 34... Ra1+
{[%clk 0:00:02.4]} 35. Kf2 {[%clk 0:01:18.3]} 35... a4 {[%clk 0:00:02.3]} 36.
Ne4 {[%clk 0:01:17.5]} 36... Bg7 {[%clk 0:00:01.6]} 37. Rd8+ {[%clk 0:01:14.8]}
1-0